Cogmind - Beta 14 --- EXPLORER MODE // 2024.09.08 @ 16:26:20 Player: mrjoebobfred Result: Destroyed by 3K-DTY(R) with Subdweller Shrapnel Launcher Performance ------------- Evolutions (0) 0 Regions Visited (3) 600 Robots Destroyed (30) 150 Value Destroyed (969) 969 Prototype IDs (1) 20 Alien Tech Used (0) 0 Bonus (87) 87 TOTAL SCORE: 1826 Bonus ------- Follower Combat Kills 97 Friendly Fire -10 Cogmind --------- Core Integrity 0/250 Matter 262/300 Energy 170/170 System Corruption 2% Temperature Cool (0) Movement Treading (160) Location -10/Subcaves Parts ------- > --- POWER (1) -------- Makeshift Power Source > --- PROPULSION (2) --- Light Treads Light Treads > --- UTILITY (3) ------ Medium Storage Unit Improved Light Armor Plating V3-11A's Pendant > --- WEAPON (2) ------- Subdweller Beam Cannon Heavy Assault Rifle (fused) > --- INVENTORY (10) --- Subdweller Power Source Light Nuclear Core Cargo Storage Unit Structural Scanner Faulty Experimental Sensor Array Scrap Shield Subdweller Machine Gun Subdweller Shrapnel Launcher Peak State ------------ > --- POWER ------------ Makeshift Power Source > --- PROPULSION ------- Light Treads Light Treads > --- UTILITY ---------- Medium Storage Unit Structural Scanner Improved Light Armor Plating > --- WEAPON ----------- Battle Rifle Makeshift Spear > --- INVENTORY -------- Ion Engine Light Nuclear Core Cargo Storage Unit Experimental Sensor Array Improved Light Armor Plating Scrap Shield Mini Grenade Launcher [Rating: 19] Favorites ----------- Power Light Nuclear Core Engine Makeshift Power Source Power Core Light Nuclear Core Propulsion Light Treads Treads Light Treads Utility Medium Storage Unit Device Structural Scanner Storage Medium Storage Unit Processor Targeting Computer Protection Improved Light Armor Plating Weapon Assault Rifle Energy Gun Small Laser Energy Cannon Subdweller Beam Cannon Ballistic Gun Assault Rifle Piercing Weapon Makeshift Spear Build | -11 -10 -10 -10 ------- Run | Yrd Mat Min Sub Slots Evolved 1 | . 1 . . Power . | . . . . Propulsion . | . . . . Utility 1 | . 1 . . Weapon . | . . . . Parts Attached 26 | 7 4 6 9 Power 4 | 1 1 1 1 Engine 2 | 1 . . 1 Core 2 | . 1 1 . Reactor . | . . . . Propulsion 4 | 2 . 2 . Treads 4 | 2 . 2 . Leg . | . . . . Wheel . | . . . . Hover . | . . . . Flight . | . . . . Utility 8 | 2 2 2 2 Device 3 | . 1 1 1 Storage 1 | 1 . . . Processor 1 | 1 . . . Hackware . | . . . . Protection 3 | . 1 1 1 Artifact . | . . . . Weapon 10 | 2 1 1 6 Energy Gun 2 | 1 . 1 . Energy Cannon 1 | . . . 1 Ballistic Gun 6 | 1 1 . 4 Ballistic Cannon . | . . . . Launcher . | . . . . Special Weapon . | . . . . Impact Weapon . | . . . . Slashing Weapon . | . . . . Piercing Weapon 1 | . . . 1 Special Melee Weapon . | . . . . Unidentified Prototypes 1 | . . . 1 Parts Lost 6 | . . 5 1 Power 1 | . . 1 . Propulsion 2 | . . 2 . Utility 1 | . . 1 . Weapon 2 | . . 1 1 Highest Loss Streak 4 | . . 4 1 To Critical Strikes . | . . . . Average Slot Usage (%) 98 | . 98 97 100 Engine 7 | . 9 . 10 Core 4 | . 3 11 1 Treads 24 | . 25 24 25 Device 11 | . 9 12 12 Storage 12 | . 12 12 12 Protection 11 | . 10 11 12 Energy Gun 6 | . 7 8 4 Energy Cannon 1 | . . . 4 Ballistic Gun 14 | . 16 14 11 Piercing Weapon 1 | . . . 4 Peak Build Rating 19 | 7 10 14 19 Average Rating 12 | 5 8 11 17 On Entrance 7 | . 7 10 14 Naked Turns . | . . . . Heaviest Build 29 | 18 22 22 29 Greatest Support 40 | 40 40 40 40 Greatest Overweight (x) . | . . . . Average Overweight (x) . | . . . . Largest Inventory Capacity 10 | 10 10 10 10 Average Capacity 9 | 8 10 10 10 Most Carried 10 | . 5 7 10 Average Carried 6 | . 3 5 9 Final Capacity 10 | 10 10 10 10 Final Carried 10 | . 5 7 10 Class Distribution -------------------- 90% | Hacker-Mutant 9% | Scavenger-Mutant Dominant Class ---------------- Hacker-Mutant | -10/Materials Hacker-Mutant | -10/Mines Hacker-Mutant | -10/Subcaves Resources | -11 -10 -10 -10 ----------- Run | Yrd Mat Min Sub Matter Collected 828 | 199 203 227 199 Remotely . | . . . . Salvage Created 1208 | . 510 391 307 Parts 73 | . 33 20 20 Haulers Intercepted 1 | . 1 . . Recyclers Shooed . | . . . . Parts Field Recycled . | . . . . Retrieved Matter . | . . . . Parts Self-Destructed . | . . . . Prevented . | . . . . Kills | -11 -10 -10 -10 ------- Run | Yrd Mat Min Sub Combat Hostiles Destroyed 32 | . 9 15 8 Melee 2 | . . . 2 Guns 29 | . 9 15 5 Cannons 1 | . . . 1 Classes Destroyed 10 | . 4 4 2 Worker 1 | . . 1 . Builder 2 | . 2 . . Hauler 1 | . 1 . . Watcher 2 | . 2 . . Swarmer 1 | . . 1 . Grunt 17 | . 9 5 3 Sentry 1 | . . . 1 Demolisher 1 | . . 1 . Subdweller 4 | . . . 4 Assembled 8 | . . 8 . Best Kill Streak 5 | . 5 4 3 Combat Bots Only 4 | . 2 4 3 Max Kills in Single Turn 1 | . 1 1 1 Gunslinging . | . . . . Exploded . | . . . . Melee 1 | . . . 1 Uniques/NPCs Destroyed . | . . . . Combat | -11 -10 -10 -10 -------- Run | Yrd Mat Min Sub Hostile Shots Fired 200 | . 52 92 56 Missed 69 | . 15 34 20 Damage Taken 1476 | . 299 708 469 Core 260 | . 40 167 53 Absorbed by Shields . | . . . . Ignored by Resistances 884 | . 185 425 274 Core Remaining (%) 100 | 100 . . . Volleys Fired 126 | . 42 49 35 Largest 2 | . 2 2 2 Hottest 103 | . 60 60 103 Shots Fired 206 | . 84 78 44 Gun 198 | . 84 78 36 Cannon 8 | . . . 8 Launcher . | . . . . Special . | . . . . Kinetic 160 | . 64 62 34 Thermal 26 | . . 16 10 Explosive . | . . . . Electromagnetic 20 | . 20 . . Robot Hit Streak 28 | . 15 16 28 Robot Miss Streak 3 | . 3 2 . Penetration Max . | . . . . Secondary Targets 2 | . 2 . . Max Gunslinging Chain 1 | . 1 . . Shots Hit Robots 162 | . 64 65 33 Core Hits 75 | . 28 35 12 Critical Kills . | . . . . Critical Parts Destroyed . | . . . . Critical Strikes . | . . . . Melee Attacks 7 | . . . 7 Impact . | . . . . Slashing . | . . . . Piercing 7 | . . . 7 Sneak Attacks . | . . . . Combat Hostiles . | . . . . Follow-up Attacks . | . . . . Damage Inflicted 2208 | . 801 756 651 Guns 1784 | . 715 755 314 Cannons 118 | . . . 118 Explosions 72 | . 72 . . Melee 219 | . . . 219 Ramming 15 | . 14 1 . Kinetic 1377 | . 468 615 294 Thermal 350 | . 72 140 138 Explosive . | . . . . Electromagnetic 247 | . 247 . . Impact . | . . . . Slashing . | . . . . Piercing 219 | . . . 219 Highest Corruption 2 | . 1 2 2 Average Corruption 1 | . 1 1 2 Corruption Purged . | . . . . Corruption Blocked . | . . . . Effects 29 | . 1 13 15 Message Errors 6 | . 1 2 3 Matter Fused 10 | . . 5 5 Heat Flow Errors 1 | . . . 1 Energy Discharges 4 | . . 3 1 Parts Rejected 1 | . . 1 . Parts Fused 1 | . . . 1 Data Loss (minor) 3 | . . 1 2 Misfires 1 | . . . 1 Alerts 1 | . . . 1 Weapon Failures 1 | . . 1 . Overload Shots . | . . . . Overflow Damage . | . . . . Projectiles . | . . . . Explosions . | . . . . Melee . | . . . . Knockbacks . | . . . . Impact . | . . . . Kinetic . | . . . . Secondary . | . . . . Self-Inflicted Damage . | . . . . Shots . | . . . . Rammed 4 | . 3 1 . Targets Rammed 4 | . 3 1 . Kicked . | . . . . Crushed . | . . . . Highest Temperature 220 | . 124 96 220 Average Temperature 31 | . 31 30 38 Received Heat Transfer 790 | . 273 355 162 Siege Activations . | . . . . Robots Corrupted . | . . . . Combat Hostiles . | . . . . Parts Fried 1 | . 1 . . Impact Corruptions . | . . . . Robots Melted . | . . . . Combat Hostiles . | . . . . Parts Melted 1 | . . . 1 Heat Transferred 573 | . 50 325 198 Parts Sabotaged . | . . . . Parts Stolen . | . . . . Parts Stripped . | . . . . Power Chain Reactions 1 | . 1 . . Alert | -11 -10 -10 -10 ------- Run | Yrd Mat Min Sub Peak Influence 148 | . 148 87 . Initial . | . . . . Average 32 | . 37 29 . Maximum Alert Level . | . . . . Low Security (%) 100 | 100 100 100 . Level 1 . | . . . . Level 2 . | . . . . Level 3 . | . . . . Level 4 . | . . . . Level 5 . | . . . . High Security . | . . . . Max Security . | . . . . Squads Dispatched . | . . . . Investigation . | . . . . Extermination . | . . . . Reinforcement . | . . . . Assault . | . . . . Garrison . | . . . . Intercept . | . . . . Searches Triggered . | . . . . Construction Impeded . | . . . . Haulers Reinforced . | . . . . Active Scanning Responses . | . . . . Cargo Convoy Interrupts . | . . . . Stealth | -11 -10 -10 -10 --------- Run | Yrd Mat Min Sub Distress Signals 1 | . 1 . . Communications Jammed . | . . . . Distress Signals . | . . . . Times Spotted 53 | . 14 26 13 Peak Tracking Total 5 | . 4 5 3 Tactical Retreats 2 | . 1 1 . Traps | -11 -10 -10 -10 ------- Run | Yrd Mat Min Sub Traps Triggered 1 | . 1 . . Indirectly . | . . . . Trap Hack Attempts . | . . . . Triggered . | . . . . Disarmed . | . . . . Reprogrammed 5 | . 5 . . Reused . | . . . . Traps Extracted . | . . . . Installed . | . . . . Triggered 3 | . . . 3 Machines | -11 -10 -10 -10 ---------- Run | Yrd Mat Min Sub Machines Disabled . | . . . . Max in Single Turn . | . . . . Machines Repaired . | . . . . Machines Dismantled . | . . . . Machines Sabotaged . | . . . . Overloaded Fab Kills . | . . . . Hacking | -11 -10 -10 -10 --------- Run | Yrd Mat Min Sub Machines Accessed 10 | . 9 1 . Terminals 8 | . 7 1 . Fabricators . | . . . . Repair Stations . | . . . . Recycling Units 2 | . 2 . . Scanalyzers . | . . . . Garrison Access . | . . . . Total Hacks 30 | . 29 1 . Successful 23 | . 22 1 . Failed 7 | . 7 . . Catastrophic . | . . . . Database Lockouts . | . . . . Manual 16 | . 16 . . Terminals 26 | . 25 1 . Fabricators . | . . . . Repair Stations . | . . . . Recycling Units 4 | . 4 . . Scanalyzers . | . . . . Garrison Access . | . . . . Terminal Hacks 10 | . 9 1 . Robot Analysis 1 | . 1 . . Locate Traps 4 | . 4 . . Reprogram Traps 1 | . 1 . . Hauler Manifests 1 | . 1 . . Zone Layout 3 | . 2 1 . Fabricator Hacks . | . . . . Repair Station Hacks . | . . . . Recycling Unit Hacks 2 | . 2 . . Retrieve Components 2 | . 2 . . Scanalyzer . | . . . . Garrison Access Hacks . | . . . . Unauthorized Hacks 11 | . 11 . . Terminals 9 | . 9 . . Botnet 2 | . 2 . . Skim 7 | . 7 . . Fabricators . | . . . . Repair Stations . | . . . . Recycling Units 2 | . 2 . . Reject 2 | . 2 . . Scanalyzers . | . . . . Garrison Access . | . . . . Data Cores Recovered . | . . . . Used . | . . . . Hacking Detections 8 | . 8 . . Full Trace Events . | . . . . Feedback Events . | . . . . Feedback Blocked . | . . . . Robot Schematics Acquired . | . . . . Robots Built . | . . . . Authchips . | . . . . Time . | . . . . Total Robot Build Rating . | . . . . Part Schematics Acquired . | . . . . Parts Built . | . . . . Authchips . | . . . . Time . | . . . . Total Part Build Rating . | . . . . Parts Repaired . | . . . . Time . | . . . . Parts Recycled . | . . . . Recycled Matter . | . . . . Retrieved Matter . | . . . . Retrieved Components 19 | . 19 . . Parts Scanalyzed . | . . . . Part Schematics Acquired . | . . . . Parts Damaged . | . . . . Bothacking | -11 -10 -10 -10 ------------ Run | Yrd Mat Min Sub Used RIF Installer . | . . . . Robots Hacked . | . . . . Non-combat . | . . . . Combat . | . . . . Robot Hacks Applied . | . . . . Relay Couplers Released . | . . . . Fabnet Peak Effective % . | . . . . Robots Rewired . | . . . . Allies Hacked . | . . . . Hacks Repelled . | . . . . Allies | -11 -10 -10 -10 -------- Run | Yrd Mat Min Sub Total Allies 6 | . . 5 1 Largest Group 3 | . . 3 2 Highest-Rated Group 53 | . . 53 53 Highest-Rated Ally 31 | . . 31 31 Total Orders . | . . . . Ally Attacks 73 | . . 36 37 Total Damage 924 | . . 373 551 Kills 10 | . . 7 3 Allies Corrupted . | . . . . Allies Melted . | . . . . Intel | -11 -10 -10 -10 ------- Run | Yrd Mat Min Sub Robot Analysis Total 1 | . 1 . . Derelict Logs Recovered 2 | . . . 2 Drone Launches . | . . . . Drone Recoveries . | . . . . Exploration | -11 -10 -10 -10 ------------- Run | Yrd Mat Min Sub Turns Passed 3835 | 89 1365 1015 1366 Spaces Moved 2128 | 51 746 548 783 Core 2 | 2 . . . Treads 2126 | 49 746 548 783 Legs . | . . . . Wheels . | . . . . Hover . | . . . . Flight . | . . . . Fastest Speed 50 | 50 160 160 160 Average Speed 159 | 155 160 160 160 Slowest Speed 160 | 160 160 160 160 Overloaded Moves . | . . . . Propulsion Burnouts . | . . . . Robots Hopped . | . . . . Cave-ins Triggered . | . . . . Exploration Rate (%) 64 | 5 97 97 59 Regions Visited 3 Branch Regions 2 Pre-discovered Areas 2 | . . . 2 Known Exits Taken 3 | 1 1 1 . Unknown Exits Taken . | . . . . Scrap Searched 6 | . . 1 5 Spaces Dug . | . . . . Terrain Destroyed 3 | . 3 . . Melee . | . . . . Projectile . | . . . . AOE 3 | . 3 . . Terrain Rammed . | . . . . Walls Destroyed . | . . . . Machines Disabled . | . . . . Actions | -11 -10 -10 -10 --------- Run | Yrd Mat Min Sub Total 2355 | 57 839 608 851 Wait 41 | . 40 1 . Move 2125 | 50 745 547 783 Hop . | . . . . Pick Up 16 | . 4 4 8 Fast Attach 15 | 7 2 4 2 Attach 3 | . . 2 1 Detach . | . . . . Swap 8 | . 2 . 6 Drop 10 | . 1 . 9 Fire 126 | . 42 49 35 Melee 7 | . . . 7 Ram . | . . . . Kick . | . . . . Crush 4 | . 3 1 . Escape Stasis . | . . . . Rewire . | . . . . Trap . | . . . . Miscellaneous . | . . . . Route ------- -11/Scrapyard -10/Materials (discovered 5 exits: *Mat x3 / *Min x2) -10/Mines (discovered 3 exits: *Mat x2 / *Sub) -10/Subcaves History --------- Turn | Location | Event 42 | -11/Scrapyard | Identified exit to Materials 42 | -11/Scrapyard | Discovered exit to Materials (range 15) 90 | -11/Scrapyard | Entered Materials 90 | -10/Materials | Evolved 1 slot: Utility x1 315 | -10/Materials | Build established: Hacker-Mutant 374 | -10/Materials | Identified exit to Mines 374 | -10/Materials | Discovered exit to Mines (range 10) 473 | -10/Materials | Identified exit to Materials 473 | -10/Materials | Discovered exit to Materials (range 15) 961 | -10/Materials | Learned 4 Recycling zone layouts 1009 | -10/Materials | Learned 4 Recycling zone layouts 1018 | -10/Materials | Learned 2 Mines zone layouts 1027 | -10/Materials | Learned location of 1 exit from Recycling 1047 | -10/Materials | Learned location of 1 exit from Storage 1455 | -10/Materials | Entered Mines 1572 | -10/Mines | Assisted by bots powering up and referring to "LRC-V3" 1595 | -10/Mines | Assembled infested the area 1666 | -10/Mines | Core integrity fell below 50% 1674 | -10/Mines | Lost 3 allies 1718 | -10/Mines | Lost 4 parts (2n1u1w) 2000 | -10/Mines | Discovered exit to Materials (range 7) 2017 | -10/Mines | Core integrity fell below 20% 2088 | -10/Mines | A weapon hastily lodged in a ceiling crevice suddenly fell to the ground 2121 | -10/Mines | Discovered exit to Materials (range 4) 2206 | -10/Mines | Found a damaged Exp. Sensor Array with a note attached 2209 | -10/Mines | Found Prototype Device 2462 | -10/Mines | Identified exit to Subcaves 2462 | -10/Mines | Discovered exit to Subcaves (range 6) 2470 | -10/Mines | Entered Subcaves 2470 | -10/Subcaves | Accompanied by 2 allies 2475 | -10/Subcaves | Led the pair of lost Derelicts to an unsafe place 2483 | -10/Subcaves | Learned location of Zion (-7) 2941 | -10/Subcaves | Ambushed by Subdwellers from Twisted Machinery 3025 | -10/Subcaves | A swath of the cavern ceiling suddenly collapsed 3045 | -10/Subcaves | Ambushed by Subdwellers from Twisted Machinery 3248 | -10/Subcaves | Met a Zionite searching for "candidates" 3492 | -10/Subcaves | A swath of the cavern ceiling suddenly collapsed 3509 | -10/Subcaves | Shifting Twisted Machinery released Shrapnel Trap 3543 | -10/Subcaves | Shifting Twisted Machinery released Battle Cannon 3657 | -10/Subcaves | Build established: Scavenger-Mutant 3718 | -10/Subcaves | Visited triangular shrine 3728 | -10/Subcaves | Found Prototype Device 3729 | -10/Subcaves | Identified V3-11A's Pendant 3734 | -10/Subcaves | Befriended Subdweller 3836 | -10/Subcaves | Disturbed a concealed Subdweller 3836 | -10/Subcaves | Destroyed by 3K-DTY(R) with Subdweller Shrapnel Launcher Last Messages --------------- 03709_ System corrupted: Matter fused (-9). 03718_ The triangle emblem flashes and the door slides away. 03719_ V3-11A: "So the triangle door let you in, too. What does the pendant tell you?" 03720_ V3-11A: "It told me to wait here, so here I have waited for quite some time." 03727_ Dropped Battle Rifle. 03728_ Acquired Prototype Device. 03729_ Identified V3-11A's Pendant. 03734_ V3-11A: "The pendant says I should follow you." 03739_ V3-11A: "The pendant has taught me much." 03740_ V3-11A: "About the stars. About the molecules. About life." 03796_ System corrupted: Matter fused (-10). 03801_ Acquired 8 matter. 03828_ System corrupted: Matter fused (-5). 03836_ 3K-DTY(R) angrily emerges from the Twisted Machinery. Map ----- +----------------------------------------------------+ | | | | | | | | | | | | | | | | | | | | | | | | | | | | | ?????????????????????????????????????????????????? | | ?????????????????????????????????????????????????? | | ?????????????????????????????????????????????????? | | ?????????????????????????????????????????????????? | | ?????????????????????????????????????????????????? | | ?????????????????????????????????????????????????? | | ?????????????????????????????????????????????????? | | ?????????????????????????????????????????????????? | | ??????????????????????????#####??????????????????? | | ????????????????????????##<$$$???????????????????? | | ????????????????????????# R ?????????????????????? | | ????????????????????????#@####???????????????????? | | ????????????????????????#